[Event "Sautron op 16th"]
[Site "Sautron"]
[Date "2016.10.22"]
[Round "6.8"]
[White "Shirazi, Kamran"]
[Black "Bogdanov, Egor"]
[Result "0-1"]
[ECO "D01"]
[WhiteElo "2336"]
[BlackElo "2400"]
[Annotator "RR"]
[PlyCount "162"]
[EventDate "2016.10.22"]
[EventType "swiss"]
[EventRounds "9"]
[EventCountry "FRA"]
[SourceTitle "EXT 2019"]
[Source "ChessBase"]
[SourceDate "2018.10.10"]
[SourceVersion "1"]
[SourceVersionDate "2018.10.10"]
[SourceQuality "1"]
[TimeControl "40/5400+30:1800+30"]
[WhiteClock "0:01:15"]
[BlackClock "0:28:06"]

1. d4 {[%emt 0:00:17]} Nf6 {[%emt 0:00:00]} 2. Nc3 {[%emt 0:01:42]} d5 {
[%emt 0:00:00]} 3. Bg5 {[%emt 0:01:14]} c5 {[%emt 0:00:02]} (3... Nbd7) (3...
Bf5) 4. e4 $5 {[%emt 0:02:12]} Nxe4 {[%emt 0:02:21]} (4... dxe4 $143 5. d5 {
Un gambit Albin avec couleurs inversées}) 5. Nxe4 {[%emt 0:00:43]} dxe4 {
[%emt 0:00:07]} 6. dxc5 {[%emt 0:00:22]} (6. d5 Qb6 7. Ne2 Qxb2 $13) 6... Qa5+
{[%emt 0:03:15]} (6... Qxd1+ 7. Rxd1 Bd7 8. Be3 Nc6 9. f3 Bf5 10. c3 e6 11. Bb5
Be7 12. f4 Rd8 13. Ne2 Rxd1+ 14. Kxd1 Kd7 15. Kc1 Kc7 16. Nd4 {1/2-1/2 (16)
Hauser,J (2377)-Mut Company,G (2290) ICCF email 2012}) 7. Qd2 {[%emt 0:00:13]}
Qxc5 {[%emt 0:02:30]} 8. O-O-O {[%emt 0:01:35][%csl Rd8]} Nc6 {[%emt 0:00:10]}
9. Be3 {[%emt 0:02:25]} Qa5 {[%emt 0:07:00] Le plus simple pour freiner
l'initiative des Blancs} 10. Qxa5 Nxa5 {[%emt 0:00:05]} 11. Rd4 $146 {[%emt 0:
01:11]} (11. Bb5+ Nc6 12. Ne2 e6 13. Rd4 f5 14. Rhd1 Be7 15. Rc4 Bd7 16. Nd4
Rc8 17. Nxc6 Bxc6 18. Bxa7 Kf7 19. Bxc6 bxc6 20. Rd7 Rhd8 21. Rcd4 Ke8 22.
Rxd8+ Bxd8 23. Bc5 Bc7 24. h3 g5 25. Kd1 h5 26. Ke2 g4 {1/2-1/2 (26) Einarsson,
E (2085)-Van der Weide,K (2450) Reykjavik 1998}) (11. Ne2 {[%cal Ge2c3,Gc3e4]}
Bg4 12. h3 Bxe2 13. Bxe2 $44 {[%csl Ge2,Ge3][%cal Ge2b5]}) 11... f5 {[%emt 0:
02:05]} 12. f3 {[%emt 0:00:12] Joué à tempo mais c'est un peu trop lent} (12.
Bb5+ Nc6 13. Ne2 Bd7 14. Rd2 (14. Bxc6 Bxc6 15. Ng3 e6 $15) 14... e6 (14... a6)
15. Rhd1) 12... Nc6 {[%emt 0:00:11]} 13. Bb5 {[%emt 0:00:15]} Bd7 $132 {
[%emt 0:00:27]} 14. Ra4 {[%emt 0:00:06]} a6 {[%emt 0:02:05]} 15. fxe4 {[%emt 0:
00:09]} Rc8 $1 $132 {[%emt 0:00:33][%csl Ra4,Rb5]} 16. Be2 {[%emt 0:06:02]} b5
$1 {[%emt 0:06:10]} 17. Rxa6 {[%emt 0:01:17]} Nb4 {[%emt 0:00:09][%csl Rc1]
[%cal Gb4a6,Gb4c2,Gc8c2]} 18. Ra7 {[%emt 0:04:21]} Nxc2 $40 {[%emt 0:00:51]
[%cal Gc8c1,Gc2e3]} 19. Bf2 {[%emt 0:44:22]} fxe4 {[%emt 0:05:41]} 20. Rxd7 {
[%emt 0:07:46] L'ouverture a mal tourné pour le MI qui est contraint de
pêcher en eaux troubles mais à part la paire de B, il n'a pas beaucoup de
compensations} (20. Kb1 Bf5 {[%cal Ge4e3]}) 20... Kxd7 {[%emt 0:01:16]} 21.
Bxb5+ {[%emt 0:00:05]} Ke6 $1 {[%emt 0:00:51]} 22. Ba6 {[%emt 0:01:27]} Rc7 {
[%emt 0:00:31]} (22... Ra8 23. Bc4+) 23. Bg3 {[%emt 0:00:29]} (23. Kb1) 23...
Rc5 {[%emt 0:00:36]} 24. Kb1 {[%emt 0:02:35]} g6 {[%emt 0:13:20][%csl Rb2]
[%cal Gf8g7]} 25. Ne2 {[%emt 0:03:07]} Bh6 {[%emt 0:03:21][%csl Gc1]} (25...
Bg7 26. Rc1) 26. Nc3 {[%emt 0:04:01]} Nb4 {[%emt 0:03:22]} 27. Be2 {[%emt 0:01:
22]} Bg7 {[%emt 0:08:03]} 28. Bg4+ {[%emt 0:01:40]} Kf7 {[%emt 0:00:06]} 29.
Rf1+ {[%emt 0:00:12]} Ke8 {[%emt 0:00:29]} 30. Na4 $6 {[%emt 0:05:46]} (30.
Nxe4 $142 Rc4 31. Bf3 Kd7 {[%cal Gh8c8]} (31... Rf8) 32. Rd1+ Rd4 33. Nc5+)
30... Rc6 {[%emt 0:01:17]} 31. Rd1 $44 {[%emt 0:02:37][%csl Gg4,Rh8][%cal
Gg4d7] Tant que les Noirs n'ont pas le temps de développer la Rh8, les Blancs
ont des petites compensations et le B de cases Blanches est très fort} Nd3 {
[%emt 0:00:42]} 32. Be2 {[%emt 0:01:49]} Rf8 $1 $17 {[%emt 0:00:24]} 33. a3 {
[%emt 0:00:22]} Rf5 {[%emt 0:02:19]} 34. Bxd3 {[%emt 0:01:05]} exd3 {[%emt 0:
00:07]} 35. Rxd3 {[%emt 0:00:29]} Ra5 {[%emt 0:00:13]} 36. b3 {[%emt 0:00:44]
[%csl Ga3,Gb3]} Rf5 {[%emt 0:00:59]} 37. Rd1 {[%emt 0:00:08]} Re6 {[%emt 0:00:
48]} 38. Nb2 {[%emt 0:01:21]} Re3 {[%emt 0:02:52]} 39. Nd3 {[%emt 0:01:21]} Rd5
{[%emt 0:00:39]} 40. Kc2 {[%emt 0:00:00][%cal Gb3b4]} e5 $1 {[%emt 0:00:00]
[%cal Ge5e4,Gd5d1]} 41. Nc1 {[%emt 0:07:11]} Rc5+ $1 {[%emt 0:08:57] Bloque le
K Blanc à l'aile-dame et la poussée de la majorité va être difficile à
réaliser} (41... Rxd1 $143 42. Kxd1 $13 {[%csl Ga3,Gb3]}) 42. Kb1 {[%emt 0:00:
07]} Rec3 {[%emt 0:00:27]} 43. Be1 {[%emt 0:03:35]} Rc2 $40 {[%emt 0:00:37]
[%csl Rb1,Rg2]} 44. Nd3 {[%emt 0:00:23][%cal Ge1b4]} Rc8 {[%emt 0:00:23][%cal
Gc2g2]} 45. Rd2 {[%emt 0:05:11]} R2c3 {[%emt 0:01:27]} 46. Rd1 {[%emt 0:03:29]}
(46. Kb2 $2 e4 {[%cal Gg7b2,Ge4d3]}) 46... Rxb3+ {[%emt 0:00:20]} 47. Ka2 {
[%emt 0:00:25]} Rb7 $19 {[%emt 0:00:25][%csl Ra2][%cal Gc8c2,Ge5e4]} 48. Nb4 {
[%emt 0:00:32]} e4 {[%emt 0:02:41]} 49. Rd2 {[%emt 0:02:40]} e3 {[%emt 0:04:43]
} 50. Re2 {[%emt 0:00:58]} Bd4 {[%emt 0:00:08]} 51. Nd5 {[%emt 0:04:57]} Rc1 {
[%emt 0:00:45]} 52. Bc3 {[%emt 0:00:37]} Bc5 {[%emt 0:03:55]} 53. Bb4 {[%emt 0:
01:50]} Kf7 {[%emt 0:03:13]} (53... Kd8 54. Bxc5 Rxc5 55. Nb4) (53... Bxb4 {
Plus rapide}) 54. Bxc5 {[%emt 0:00:48]} Rxc5 {[%emt 0:00:05]} 55. Nxe3 {
[%emt 0:00:07]} Kg7 {[%emt 0:01:28]} 56. Nd1 {[%emt 0:01:42]} h5 {[%emt 0:00:
36]} 57. Nb2 {[%emt 0:00:22]} h4 {[%emt 0:00:40]} 58. Nd3 {[%emt 0:00:24]} Rc3
{[%emt 0:00:13]} 59. Nb4 {[%emt 0:00:06]} Ra7 {[%emt 0:00:19]} 60. Nc2 {
[%emt 0:00:08]} Rd3 {[%emt 0:00:53]} 61. Kb2 {[%emt 0:00:32]} g5 {[%emt 0:00:
19]} 62. Kc1 {[%emt 0:01:51]} Rf7 {[%emt 0:00:16]} 63. Kb2 {[%emt 0:00:14]} Rf1
{[%emt 0:01:07]} 64. Ne1 {[%emt 0:02:21]} Rd5 {[%emt 0:01:38]} 65. h3 {[%emt 0:
00:22]} Kf6 {[%emt 0:04:30]} 66. Nf3 {[%emt 0:01:41]} Rb5+ {[%emt 0:02:37]} 67.
Ka2 {[%emt 0:01:32]} Ra5 {[%emt 0:01:42]} 68. Kb2 {[%emt 0:00:43]} Kf5 {
[%emt 0:00:27]} 69. Nd2 {[%emt 0:00:14]} Rf4 {[%emt 0:00:11]} 70. Kb3 {[%emt 0:
00:21]} Rb5+ {[%emt 0:00:02]} 71. Ka2 {[%emt 0:00:30]} Rd5 {[%emt 0:01:53]} 72.
Nf3 {[%emt 0:00:16]} Rd3 {[%emt 0:00:40]} 73. Rb2 {[%emt 0:01:11]} Re4 {
[%emt 0:02:09]} 74. Nh2 {[%emt 0:01:33]} Ree3 $19 {[%emt 0:00:35]} 75. Rb5+ {
[%emt 0:00:09]} Kf4 {[%emt 0:01:43]} 76. Rb4+ {[%emt 0:00:08]} Re4 {[%emt 0:03:
05]} 77. Rb2 {[%emt 0:00:08]} Ra4 {[%emt 0:00:32]} 78. Rb4+ {[%emt 0:00:51]}
Rxb4 {[%emt 0:00:05]} 79. axb4 {[%emt 0:00:09]} Rd2+ {[%emt 0:00:13]} 80. Kb3 {
[%emt 0:01:07]} Rxg2 {[%emt 0:00:07]} 81. Ng4 {[%emt 0:00:46]} Rxg4 {[%emt 0:
00:21]} 0-1